[Event "*** Titled Tuesday Blitz"]
[Site "Chess.com"]
[Date "2020.03.03"]
[Round "9"]
[White "TST2014"]
[Black "Rubinstein_Akiba"]
[Result "1-0"]
[WhiteElo "2587"]
[BlackElo "2410"]
[TimeControl "180+1"]
[EndTime "14:49:42 PST"]
[Termination "TST2014 won by checkmate"]

1. d4 {[%clk 0:03:00.9]} 1... Nf6 {[%clk 0:02:58.4]} 2. c4 {[%clk 0:03:00.3]}
2... e6 {[%clk 0:02:56.7]} 3. Nf3 {[%clk 0:03:00]} 3... d5 {[%clk 0:02:55.4]} 4.
Nc3 {[%clk 0:02:59.6]} 4... Bb4 {[%clk 0:02:52.5]} 5. cxd5 {[%clk 0:02:57.3]}
5... exd5 {[%clk 0:02:51.5]} 6. Bg5 {[%clk 0:02:56.6]} 6... h6 {[%clk
0:02:50.1]} 7. Bxf6 {[%clk 0:02:55.8]} 7... Qxf6 {[%clk 0:02:51]} 8. Qa4+ {[%clk
0:02:55.3]} 8... Nc6 {[%clk 0:02:50]} 9. e3 {[%clk 0:02:55.6]} 9... O-O {[%clk
0:02:49.1]} 10. Be2 {[%clk 0:02:54.9]} 10... Bxc3+ {[%clk 0:02:39.3]} 11. bxc3
{[%clk 0:02:54.5]} 11... Ne7 {[%clk 0:02:39.8]} 12. O-O {[%clk 0:02:50.7]} 12...
c6 {[%clk 0:02:39]} 13. c4 {[%clk 0:02:50.3]} 13... Bg4 {[%clk 0:02:36.3]} 14.
h3 {[%clk 0:02:48.7]} 14... Bh5 {[%clk 0:02:32.6]} 15. Rab1 {[%clk 0:02:42.2]}
15... b6 {[%clk 0:02:24.5]} 16. Rfe1 {[%clk 0:02:38.2]} 16... Bg6 {[%clk
0:02:18.2]} 17. Rbc1 {[%clk 0:02:34.1]} 17... dxc4 {[%clk 0:02:13.9]} 18. Qxc4
{[%clk 0:02:28]} 18... Be4 {[%clk 0:02:13.4]} 19. Ne5 {[%clk 0:02:25.5]} 19...
Qg5 {[%clk 0:01:58.6]} 20. Bf3 {[%clk 0:02:14.8]} 20... Bd5 {[%clk 0:01:49.2]}
21. Bxd5 {[%clk 0:02:10]} 21... cxd5 {[%clk 0:01:50.1]} 22. Qc7 {[%clk
0:02:05.8]} 22... Ng6 {[%clk 0:01:38.4]} 23. Nf3 {[%clk 0:01:53.4]} 23... Qf5
{[%clk 0:01:33.4]} 24. Rc6 {[%clk 0:01:46.4]} 24... Rfc8 {[%clk 0:01:19.1]} 25.
Qb7 {[%clk 0:01:41.4]} 25... Rcb8 {[%clk 0:01:16.7]} 26. Qa6 {[%clk 0:01:38.3]}
26... Qd7 {[%clk 0:00:55.1]} 27. Rec1 {[%clk 0:01:35.2]} 27... Rb7 {[%clk
0:00:54]} 28. a4 {[%clk 0:01:27.6]} 28... f6 {[%clk 0:00:46.6]} 29. Qb5 {[%clk
0:01:23.1]} 29... Ne7 {[%clk 0:00:25]} 30. R6c3 {[%clk 0:01:06.1]} 30... Kf7
{[%clk 0:00:20.5]} 31. Qxd7 {[%clk 0:00:58]} 31... Rxd7 {[%clk 0:00:21.4]} 32.
Rc7 {[%clk 0:00:58.3]} 32... Ke6 {[%clk 0:00:20.5]} 33. g4 {[%clk 0:00:56.3]}
33... Kd6 {[%clk 0:00:19.6]} 34. R7c3 {[%clk 0:00:52.5]} 34... Rdd8 {[%clk
0:00:19]} 35. Nh4 {[%clk 0:00:52.3]} 35... g5 {[%clk 0:00:15.9]} 36. Nf5+ {[%clk
0:00:51.1]} 36... Nxf5 {[%clk 0:00:15.8]} 37. gxf5 {[%clk 0:00:52]} 37... Rd7
{[%clk 0:00:16]} 38. Rc6+ {[%clk 0:00:51.1]} 38... Ke7 {[%clk 0:00:16]} 39. Re6+
{[%clk 0:00:51.7]} 39... Kf7 {[%clk 0:00:16]} 40. Rcc6 {[%clk 0:00:52.6]} 40...
Kg8 {[%clk 0:00:14.2]} 41. Rxf6 {[%clk 0:00:52.5]} 41... Rf7 {[%clk 0:00:14.6]}
42. Rxf7 {[%clk 0:00:50]} 42... Kxf7 {[%clk 0:00:14.6]} 43. Rxh6 {[%clk
0:00:49]} 43... Rc8 {[%clk 0:00:13.6]} 44. a5 {[%clk 0:00:44.3]} 44... b5 {[%clk
0:00:11.6]} 45. Rh7+ {[%clk 0:00:40.9]} 45... Kf6 {[%clk 0:00:11]} 46. Rxa7
{[%clk 0:00:41.4]} 46... Rb8 {[%clk 0:00:11.2]} 47. Ra6+ {[%clk 0:00:41]} 47...
Kxf5 {[%clk 0:00:11.4]} 48. Rb6 {[%clk 0:00:41]} 48... Rh8 {[%clk 0:00:10.6]}
49. Kg2 {[%clk 0:00:40.4]} 49... Ke4 {[%clk 0:00:09.2]} 50. Rxb5 {[%clk
0:00:39]} 50... Ra8 {[%clk 0:00:09.1]} 51. Kg3 {[%clk 0:00:37.1]} 51... Rf8
{[%clk 0:00:08.5]} 52. Rb6 {[%clk 0:00:35.6]} 52... Rf3+ {[%clk 0:00:08.6]} 53.
Kg2 {[%clk 0:00:35.5]} 53... Rf8 {[%clk 0:00:08.5]} 54. Re6+ {[%clk 0:00:33]}
54... Kd3 {[%clk 0:00:08.4]} 55. Re5 {[%clk 0:00:33.4]} 55... Ke2 {[%clk
0:00:08.6]} 56. a6 {[%clk 0:00:26.3]} 56... Rxf2+ {[%clk 0:00:08.1]} 57. Kg3
{[%clk 0:00:26.6]} 57... Rf6 {[%clk 0:00:07.4]} 58. a7 {[%clk 0:00:22.5]} 58...
Ra6 {[%clk 0:00:07]} 59. Kg4 {[%clk 0:00:22.5]} 59... Rxa7 {[%clk 0:00:06.9]}
60. Kxg5 {[%clk 0:00:22.9]} 60... Rh7 {[%clk 0:00:06.3]} 61. h4 {[%clk
0:00:22.6]} 61... Kf3 {[%clk 0:00:06.8]} 62. h5 {[%clk 0:00:23]} 62... Rg7+
{[%clk 0:00:07]} 63. Kf6 {[%clk 0:00:23]} 63... Rh7 {[%clk 0:00:05.7]} 64. Kg6
{[%clk 0:00:23]} 64... Rb7 {[%clk 0:00:05.5]} 65. h6 {[%clk 0:00:23.3]} 65...
Rb6+ {[%clk 0:00:05.7]} 66. Kg5 {[%clk 0:00:20.8]} 66... Rb7 {[%clk 0:00:04.4]}
67. Kf6 {[%clk 0:00:16.4]} 67... Rb6+ {[%clk 0:00:04.6]} 68. Re6 {[%clk
0:00:16.9]} 68... Rb7 {[%clk 0:00:03.9]} 69. Re7 {[%clk 0:00:17.4]} 69... Rb6+
{[%clk 0:00:03.9]} 70. Kg7 {[%clk 0:00:17.7]} 70... Rxh6 {[%clk 0:00:02.2]} 71.
Kxh6 {[%clk 0:00:17.5]} 71... Ke2 {[%clk 0:00:03.1]} 72. Kg5 {[%clk 0:00:17.8]}
72... Kd3 {[%clk 0:00:04]} 73. Kf4 {[%clk 0:00:18.3]} 73... Kc4 {[%clk
0:00:04.9]} 74. Ke5 {[%clk 0:00:18.5]} 74... Kd3 {[%clk 0:00:05.8]} 75. Kxd5
{[%clk 0:00:18.7]} 75... Ke2 {[%clk 0:00:06.7]} 76. e4 {[%clk 0:00:19]} 76...
Kf3 {[%clk 0:00:07.6]} 77. e5 {[%clk 0:00:19.5]} 77... Ke2 {[%clk 0:00:08.5]}
78. Ke6 {[%clk 0:00:19.8]} 78... Kd3 {[%clk 0:00:09.4]} 79. d5 {[%clk
0:00:20.3]} 79... Kd4 {[%clk 0:00:10.3]} 80. Kd7 {[%clk 0:00:20.8]} 80... Kc4
{[%clk 0:00:11.2]} 81. d6 {[%clk 0:00:21]} 81... Kd3 {[%clk 0:00:12.1]} 82. e6
{[%clk 0:00:21.5]} 82... Ke2 {[%clk 0:00:13]} 83. Re8 {[%clk 0:00:22]} 83... Kf2
{[%clk 0:00:13.9]} 84. Ra8 {[%clk 0:00:22.2]} 84... Kf3 {[%clk 0:00:14.7]} 85.
Ke8 {[%clk 0:00:22.7]} 85... Ke3 {[%clk 0:00:15.6]} 86. e7 {[%clk 0:00:22.9]}
86... Kd3 {[%clk 0:00:16.5]} 87. d7 {[%clk 0:00:23.4]} 87... Kd2 {[%clk
0:00:17.4]} 88. Kf7 {[%clk 0:00:23.8]} 88... Kd3 {[%clk 0:00:18.3]} 89. Ke6
{[%clk 0:00:24.2]} 89... Kc3 {[%clk 0:00:19.2]} 90. Kf5 {[%clk 0:00:24.6]} 90...
Kc2 {[%clk 0:00:20.1]} 91. Ke4 {[%clk 0:00:25.1]} 91... Kd1 {[%clk 0:00:21]} 92.
Kd3 {[%clk 0:00:25.5]} 92... Ke1 {[%clk 0:00:20.3]} 93. d8=R {[%clk 0:00:25.3]}
93... Kf1 {[%clk 0:00:21.2]} 94. e8=R {[%clk 0:00:25]} 94... Kg1 {[%clk
0:00:22.1]} 95. Re7 {[%clk 0:00:25.1]} 95... Kh1 {[%clk 0:00:23]} 96. Rd6 {[%clk
0:00:25.4]} 96... Kg1 {[%clk 0:00:23.9]} 97. Rc8 {[%clk 0:00:25.7]} 97... Kf1
{[%clk 0:00:24.8]} 98. Rc5 {[%clk 0:00:25.9]} 98... Kg1 {[%clk 0:00:24.3]} 99.
Kc3 {[%clk 0:00:25.8]} 99... Kh1 {[%clk 0:00:25.2]} 100. Kb4 {[%clk 0:00:26.3]}
100... Kh2 {[%clk 0:00:26.1]} 101. Rf6 {[%clk 0:00:25.7]} 101... Kh3 {[%clk
0:00:27]} 102. Rg5 {[%clk 0:00:25.8]} 102... Kh4 {[%clk 0:00:27.9]} 103. Rg1
{[%clk 0:00:25.2]} 103... Kh5 {[%clk 0:00:27.4]} 104. Rf2 {[%clk 0:00:25.1]}
104... Kh4 {[%clk 0:00:27]} 105. Re3 {[%clk 0:00:24.9]} 105... Kh5 {[%clk
0:00:27.9]} 106. Rgg2 {[%clk 0:00:22.5]} 106... Kh6 {[%clk 0:00:28.8]} 107. Rf1
{[%clk 0:00:22.8]} 107... Kh5 {[%clk 0:00:29.7]} 108. Kc4 {[%clk 0:00:22.4]}
108... Kh6 {[%clk 0:00:30.6]} 109. Kd5 {[%clk 0:00:22.7]} 109... Kh5 {[%clk
0:00:31.5]} 110. Ke4 {[%clk 0:00:22.9]} 110... Kh6 {[%clk 0:00:32.4]} 111. Kf5
{[%clk 0:00:22.3]} 111... Kh5 {[%clk 0:00:33.3]} 112. Rh3# {[%clk 0:00:22.3]}
1-0